[Event "*** SCC Grand Prix: Titled Tuesday Blitz"]
[Site "Chess.com"]
[Date "2020.08.11"]
[Round "1"]
[White "Blagorod"]
[Black "DariaVoit"]
[Result "0-1"]
[WhiteElo "2115"]
[BlackElo "2507"]
[TimeControl "180+1"]
[EndTime "10:08:24 PDT"]
[Termination "DariaVoit won by resignation"]

1. e4 {[%clk 0:03:00.9]} 1... e6 {[%clk 0:02:57.8]} 2. d4 {[%clk 0:03:00.4]}
2... d5 {[%clk 0:02:58.3]} 3. Nc3 {[%clk 0:03:00.8]} 3... Bb4 {[%clk 0:02:57.5]}
4. exd5 {[%clk 0:03:01.1]} 4... exd5 {[%clk 0:02:57.1]} 5. Bd3 {[%clk
0:03:01.7]} 5... Nf6 {[%clk 0:02:53.9]} 6. Ne2 {[%clk 0:03:02.3]} 6... O-O
{[%clk 0:02:53.8]} 7. O-O {[%clk 0:03:02.9]} 7... Bg4 {[%clk 0:02:53.3]} 8. f3
{[%clk 0:03:02.8]} 8... Bh5 {[%clk 0:02:53.6]} 9. Nf4 {[%clk 0:03:02.6]} 9...
Bg6 {[%clk 0:02:52.3]} 10. Nxg6 {[%clk 0:03:01.5]} 10... hxg6 {[%clk 0:02:53.2]}
11. Ne2 {[%clk 0:03:01.3]} 11... c5 {[%clk 0:02:50]} 12. c3 {[%clk 0:02:59.8]}
12... Ba5 {[%clk 0:02:26.5]} 13. dxc5 {[%clk 0:02:59.7]} 13... Bc7 {[%clk
0:02:27]} 14. Bf4 {[%clk 0:02:54.4]} 14... a5 {[%clk 0:02:25]} 15. b4 {[%clk
0:02:40.8]} 15... axb4 {[%clk 0:02:19.2]} 16. cxb4 {[%clk 0:02:40.9]} 16... b6
{[%clk 0:02:16.7]} 17. Be3 {[%clk 0:02:32.8]} 17... Re8 {[%clk 0:02:15.4]} 18.
Bf2 {[%clk 0:02:29.7]} 18... Be5 {[%clk 0:02:14.7]} 19. Bd4 {[%clk 0:02:13.8]}
19... Qc7 {[%clk 0:01:46.1]} 20. Bb5 {[%clk 0:02:08.1]} 20... Nbd7 {[%clk
0:01:26.3]} 21. Bxe5 {[%clk 0:02:04]} 21... Qxe5 {[%clk 0:01:24.6]} 22. Re1
{[%clk 0:01:54]} 22... bxc5 {[%clk 0:01:17.3]} 23. bxc5 {[%clk 0:01:53]} 23...
Qe3+ {[%clk 0:01:14.4]} 24. Kh1 {[%clk 0:01:50.9]} 24... Qxc5 {[%clk 0:01:15]}
25. Bxd7 {[%clk 0:01:45.3]} 25... Nxd7 {[%clk 0:01:15.9]} 26. Nf4 {[%clk
0:01:38.9]} 26... Nb6 {[%clk 0:01:03]} 27. h3 {[%clk 0:01:28.9]} 27... g5 {[%clk
0:00:59.6]} 28. Ne2 {[%clk 0:01:08.7]} 28... Nc4 {[%clk 0:00:54.8]} 29. Ng3
{[%clk 0:01:04.4]} 29... Qf2 {[%clk 0:00:43.7]} 30. Rxe8+ {[%clk 0:01:00.7]}
30... Rxe8 {[%clk 0:00:42.5]} 31. Nf5 {[%clk 0:00:58.9]} 31... g6 {[%clk
0:00:22.3]} 32. Nh6+ {[%clk 0:00:51.3]} 32... Kg7 {[%clk 0:00:21.4]} 33. Ng4
{[%clk 0:00:51.9]} 33... Qb2 {[%clk 0:00:19.7]} 34. Qc1 {[%clk 0:00:44.8]} 34...
Re2 {[%clk 0:00:16.6]} 35. Qxb2+ {[%clk 0:00:41.9]} 35... Rxb2 {[%clk
0:00:16.5]} 36. a4 {[%clk 0:00:37.8]} 36... f5 {[%clk 0:00:16.5]} 37. Nh2 {[%clk
0:00:34.1]} 37... Na5 {[%clk 0:00:16.4]} 38. Nf1 {[%clk 0:00:29.9]} 38... d4
{[%clk 0:00:14.1]} 39. Kh2 {[%clk 0:00:20.7]} 39... Kf6 {[%clk 0:00:13.9]} 40.
Kg3 {[%clk 0:00:19.7]} 40... Ke5 {[%clk 0:00:13.8]} 41. Kh2 {[%clk 0:00:18.6]}
41... d3 {[%clk 0:00:13.6]} 42. Rd1 {[%clk 0:00:18.1]} 42... Kd4 {[%clk
0:00:13.6]} 43. Nd2 {[%clk 0:00:15.6]} 43... Ra2 {[%clk 0:00:13.5]} 44. f4
{[%clk 0:00:14.4]} 44... gxf4 {[%clk 0:00:12.6]} 45. Nf3+ {[%clk 0:00:14.7]}
45... Ke3 {[%clk 0:00:12.5]} 46. Re1+ {[%clk 0:00:14.7]} 46... Kf2 {[%clk
0:00:12.7]} 47. Rd1 {[%clk 0:00:14.6]} 47... Ke2 {[%clk 0:00:11.3]} 48. Re1+
{[%clk 0:00:14.5]} 48... Kf2 {[%clk 0:00:11.6]} 49. Rd1 {[%clk 0:00:15]} 49...
Ra3 {[%clk 0:00:11.1]} 50. Rd2+ {[%clk 0:00:13.3]} 50... Ke3 {[%clk 0:00:11.3]}
51. Rd1 {[%clk 0:00:12.5]} 51... Nc4 {[%clk 0:00:11.5]} 52. Re1+ {[%clk
0:00:12.6]} 52... Kf2 {[%clk 0:00:11.5]} 53. Rd1 {[%clk 0:00:12.9]} 53... Ke2
{[%clk 0:00:11.8]} 54. Rd2+ {[%clk 0:00:12.6]} 54... Nxd2 {[%clk 0:00:11.3]} 55.
Nd4+ {[%clk 0:00:12.2]} 55... Ke3 {[%clk 0:00:11.1]} 56. Nb5 {[%clk 0:00:11.1]}
56... Rxa4 {[%clk 0:00:11.4]} 57. Nc3 {[%clk 0:00:11.1]} 57... Ra3 {[%clk
0:00:11.1]} 58. Nd5+ {[%clk 0:00:11.4]} 58... Kd4 {[%clk 0:00:11.4]} 59. Nxf4
{[%clk 0:00:11.3]} 59... Ne4 {[%clk 0:00:11.9]} 60. Nxd3 {[%clk 0:00:11]} 60...
Kxd3 {[%clk 0:00:12]} 61. h4 {[%clk 0:00:11.7]} 61... Ra2 {[%clk 0:00:12.9]} 62.
Kh3 {[%clk 0:00:11.5]} 62... Ke3 {[%clk 0:00:13]} 63. h5 {[%clk 0:00:10.7]}
63... gxh5 {[%clk 0:00:12.8]} 64. Kh4 {[%clk 0:00:10.1]} 64... Rxg2 {[%clk
0:00:11.7]} 65. Kxh5 {[%clk 0:00:10.6]} 65... Kf4 {[%clk 0:00:12.1]} 0-1

[Event "*** SCC Grand Prix: Titled Tuesday Blitz"]
[Site "Chess.com"]
[Date "2020.08.11"]
[Round "1"]
[White "nikitakhoroshev"]
[Black "zmarian"]
[Result "1-0"]
[WhiteElo "2552"]
[BlackElo "2186"]
[TimeControl "180+1"]
[EndTime "10:08:25 PDT"]
[Termination "nikitakhoroshev won on time"]

1. d4 {[%clk 0:03:00.3]} 1... g6 {[%clk 0:02:59.1]} 2. c4 {[%clk 0:03:00.6]}
2... Bg7 {[%clk 0:02:58.5]} 3. Nc3 {[%clk 0:03:01.2]} 3... Nf6 {[%clk
0:02:53.2]} 4. e4 {[%clk 0:03:00.5]} 4... d6 {[%clk 0:02:52.8]} 5. Be2 {[%clk
0:03:00.9]} 5... O-O {[%clk 0:02:52]} 6. Bg5 {[%clk 0:03:01.3]} 6... c5 {[%clk
0:02:51.1]} 7. d5 {[%clk 0:03:01.2]} 7... e6 {[%clk 0:02:50.1]} 8. f3 {[%clk
0:02:55.9]} 8... exd5 {[%clk 0:02:49.6]} 9. cxd5 {[%clk 0:02:56.8]} 9... h6
{[%clk 0:02:44.7]} 10. Bd2 {[%clk 0:02:56.5]} 10... Na6 {[%clk 0:02:43.9]} 11.
a3 {[%clk 0:02:55.2]} 11... Nc7 {[%clk 0:02:43.1]} 12. a4 {[%clk 0:02:55.3]}
12... b6 {[%clk 0:02:42]} 13. Bc4 {[%clk 0:02:51.5]} 13... a6 {[%clk 0:02:40.2]}
14. Nge2 {[%clk 0:02:50.7]} 14... Bd7 {[%clk 0:02:37.1]} 15. O-O {[%clk
0:02:43.4]} 15... b5 {[%clk 0:02:37]} 16. Bd3 {[%clk 0:02:29.3]} 16... Re8
{[%clk 0:02:23.1]} 17. b3 {[%clk 0:02:24.5]} 17... Qe7 {[%clk 0:02:21.3]} 18.
Ra2 {[%clk 0:02:17.5]} 18... Reb8 {[%clk 0:02:18]} 19. Nb1 {[%clk 0:02:00.6]}
19... bxa4 {[%clk 0:02:14.7]} 20. bxa4 {[%clk 0:01:59.9]} 20... Rb7 {[%clk
0:02:07.2]} 21. Qc2 {[%clk 0:01:57.5]} 21... Qe8 {[%clk 0:02:04.4]} 22. Bf4
{[%clk 0:01:49.4]} 22... Qe7 {[%clk 0:01:55.1]} 23. Nd2 {[%clk 0:01:48.4]} 23...
Rb4 {[%clk 0:01:45.8]} 24. Nc4 {[%clk 0:01:46.7]} 24... Nfe8 {[%clk 0:01:37.8]}
25. Bd2 {[%clk 0:01:46.2]} 25... Rb7 {[%clk 0:01:30.3]} 26. Rb1 {[%clk
0:01:45.8]} 26... Rab8 {[%clk 0:01:25]} 27. Rxb7 {[%clk 0:01:44.4]} 27... Rxb7
{[%clk 0:01:24.7]} 28. Bc3 {[%clk 0:01:30.4]} 28... Bxc3 {[%clk 0:01:10.7]} 29.
Qxc3 {[%clk 0:01:31.3]} 29... Bc8 {[%clk 0:01:01.7]} 30. Na5 {[%clk 0:01:29]}
30... Rb6 {[%clk 0:00:59.8]} 31. Nc4 {[%clk 0:01:22.8]} 31... Rb4 {[%clk
0:00:58.3]} 32. Rb2 {[%clk 0:01:21.3]} 32... Rxb2 {[%clk 0:00:49.7]} 33. Qxb2
{[%clk 0:01:22.2]} 33... Bd7 {[%clk 0:00:49.4]} 34. Nb6 {[%clk 0:01:17.5]} 34...
g5 {[%clk 0:00:44.3]} 35. Ng3 {[%clk 0:01:15.9]} 35... Ng7 {[%clk 0:00:38.7]}
36. Nf1 {[%clk 0:00:52.8]} 36... Nge8 {[%clk 0:00:37.5]} 37. Ne3 {[%clk
0:00:52.1]} 37... Ng7 {[%clk 0:00:36.9]} 38. Nec4 {[%clk 0:00:48.2]} 38... Nge8
{[%clk 0:00:30.9]} 39. Na5 {[%clk 0:00:42.6]} 39... Qf6 {[%clk 0:00:27]} 40.
Qxf6 {[%clk 0:00:40.8]} 40... Nxf6 {[%clk 0:00:26.8]} 41. Nb7 {[%clk 0:00:39.3]}
41... Nce8 {[%clk 0:00:22.4]} 42. Bxa6 {[%clk 0:00:37.7]} 42... Kf8 {[%clk
0:00:19.3]} 43. Kf2 {[%clk 0:00:36.9]} 43... Ke7 {[%clk 0:00:19.1]} 44. Nxd7
{[%clk 0:00:36.2]} 44... Nxd7 {[%clk 0:00:16]} 45. Bb5 {[%clk 0:00:33.3]} 45...
Nc7 {[%clk 0:00:15.1]} 46. Bc6 {[%clk 0:00:31]} 46... Na6 {[%clk 0:00:12.6]} 47.
Na5 {[%clk 0:00:29.4]} 47... Ndb8 {[%clk 0:00:11.9]} 48. Bb5 {[%clk 0:00:29.2]}
48... Nb4 {[%clk 0:00:11.6]} 49. Nc4 {[%clk 0:00:29.2]} 49... N8a6 {[%clk
0:00:11.3]} 50. Ke3 {[%clk 0:00:28.2]} 50... Nc7 {[%clk 0:00:10.6]} 51. Bc6
{[%clk 0:00:26.4]} 51... Nca6 {[%clk 0:00:10]} 52. a5 {[%clk 0:00:25.1]} 52...
Nc7 {[%clk 0:00:09]} 53. Kd2 {[%clk 0:00:24.9]} 53... Nca6 {[%clk 0:00:08.7]}
54. Kc3 {[%clk 0:00:25.1]} 54... Nc7 {[%clk 0:00:08.5]} 55. Nb2 {[%clk
0:00:24.9]} 55... Nca6 {[%clk 0:00:07.8]} 56. Bb5 {[%clk 0:00:24.1]} 56... Nc7
{[%clk 0:00:07.4]} 57. Bc4 {[%clk 0:00:24.3]} 57... Nba6 {[%clk 0:00:06.3]} 58.
Nd3 {[%clk 0:00:23.5]} 58... Kd7 {[%clk 0:00:05.9]} 59. g3 {[%clk 0:00:23.7]}
59... f6 {[%clk 0:00:05.6]} 60. f4 {[%clk 0:00:23.8]} 60... Kc8 {[%clk
0:00:04.9]} 61. e5 {[%clk 0:00:23.3]} 61... fxe5 {[%clk 0:00:04.3]} 62. fxe5
{[%clk 0:00:24.2]} 62... dxe5 {[%clk 0:00:03.8]} 63. d6 {[%clk 0:00:24.4]} 63...
Nb4 {[%clk 0:00:02.4]} 64. dxc7 {[%clk 0:00:23.8]} 64... Kxc7 {[%clk 0:00:01.6]}
65. Nxb4 {[%clk 0:00:23.3]} 1-0

[Event "*** SCC Grand Prix: Titled Tuesday Blitz"]
[Site "Chess.com"]
[Date "2020.08.11"]
[Round "1"]
[White "ExtremeLearner"]
[Black "belisarius64"]
[Result "0-1"]
[WhiteElo "2356"]
[BlackElo "2717"]
[TimeControl "180+1"]
[EndTime "10:08:27 PDT"]
[Termination "belisarius64 won by resignation"]

1. d4 {[%clk 0:03:00.6]} 1... Nf6 {[%clk 0:02:59.5]} 2. Nf3 {[%clk 0:02:57.1]}
2... g6 {[%clk 0:02:57]} 3. g3 {[%clk 0:02:52.2]} 3... Bg7 {[%clk 0:02:57.2]} 4.
Bg2 {[%clk 0:02:53.1]} 4... O-O {[%clk 0:02:58]} 5. O-O {[%clk 0:02:51.6]} 5...
d6 {[%clk 0:02:58.9]} 6. b3 {[%clk 0:02:51.2]} 6... b5 {[%clk 0:02:49.2]} 7. a4
{[%clk 0:02:36.6]} 7... b4 {[%clk 0:02:45.2]} 8. c4 {[%clk 0:02:29.3]} 8... Bb7
{[%clk 0:02:36.3]} 9. Bb2 {[%clk 0:02:28]} 9... a5 {[%clk 0:02:36.8]} 10. Nbd2
{[%clk 0:02:23.9]} 10... Nbd7 {[%clk 0:02:36.8]} 11. Re1 {[%clk 0:02:21.9]}
11... Ne4 {[%clk 0:02:35.1]} 12. Nxe4 {[%clk 0:02:20.8]} 12... Bxe4 {[%clk
0:02:36]} 13. Nd2 {[%clk 0:02:21.2]} 13... Bxg2 {[%clk 0:02:33.4]} 14. Kxg2
{[%clk 0:02:22.1]} 14... c5 {[%clk 0:02:29.9]} 15. e3 {[%clk 0:02:20.7]} 15...
d5 {[%clk 0:02:25.5]} 16. Rc1 {[%clk 0:02:12.3]} 16... Nb6 {[%clk 0:02:20.5]}
17. Qc2 {[%clk 0:02:05.2]} 17... cxd4 {[%clk 0:02:14.2]} 18. Bxd4 {[%clk
0:02:02.9]} 18... Bxd4 {[%clk 0:02:10.2]} 19. exd4 {[%clk 0:02:03.8]} 19... dxc4
{[%clk 0:02:10.8]} 20. Nxc4 {[%clk 0:02:02.7]} 20... Rc8 {[%clk 0:01:38.3]} 21.
Qe4 {[%clk 0:01:38.4]} 21... Nd5 {[%clk 0:01:34]} 22. h4 {[%clk 0:01:20.9]}
22... Nc3 {[%clk 0:01:31.7]} 23. Qxe7 {[%clk 0:01:09.2]} 23... Qxd4 {[%clk
0:01:24.5]} 24. Ne3 {[%clk 0:01:01.4]} 24... Rfe8 {[%clk 0:01:06.8]} 25. Qg5
{[%clk 0:00:51.9]} 25... Rc5 {[%clk 0:00:55.3]} 26. Qg4 {[%clk 0:00:38.7]} 26...
Qxg4 {[%clk 0:00:43.7]} 27. Nxg4 {[%clk 0:00:39.6]} 27... Rd8 {[%clk 0:00:43.9]}
28. Re3 {[%clk 0:00:23.2]} 28... Rd2 {[%clk 0:00:40.7]} 29. Rce1 {[%clk
0:00:14.7]} 29... h5 {[%clk 0:00:40.2]} 30. Nf6+ {[%clk 0:00:11.5]} 30... Kg7
{[%clk 0:00:39.1]} 31. Ne8+ {[%clk 0:00:09.9]} 31... Kf8 {[%clk 0:00:35.4]} 32.
Nf6 {[%clk 0:00:05.8]} 32... Rf5 {[%clk 0:00:16.6]} 33. Ne4 {[%clk 0:00:05.2]}
33... Nxe4 {[%clk 0:00:15.6]} 34. Rxe4 {[%clk 0:00:06.1]} 34... Rfxf2+ {[%clk
0:00:16.2]} 35. Kg1 {[%clk 0:00:06.2]} 35... Rg2+ {[%clk 0:00:16.5]} 36. Kh1
{[%clk 0:00:06.8]} 36... Rxg3 {[%clk 0:00:16.8]} 37. Re8+ {[%clk 0:00:06.5]}
37... Kg7 {[%clk 0:00:17.2]} 38. Ra8 {[%clk 0:00:07.2]} 38... Rxb3 {[%clk
0:00:17.2]} 39. Ra7 {[%clk 0:00:07]} 39... Rh3+ {[%clk 0:00:16.8]} 40. Kg1
{[%clk 0:00:06.9]} 40... Rf3 {[%clk 0:00:17]} 41. Rxa5 {[%clk 0:00:05.9]} 41...
b3 {[%clk 0:00:17.5]} 42. Rb5 {[%clk 0:00:05.8]} 42... Ra2 {[%clk 0:00:15.5]}
43. a5 {[%clk 0:00:05.7]} 43... b2 {[%clk 0:00:15.1]} 44. Rb1 {[%clk 0:00:05.8]}
44... Rf4 {[%clk 0:00:11.1]} 45. R1xb2 {[%clk 0:00:05.2]} 45... Rxb2 {[%clk
0:00:10.1]} 46. Rxb2 {[%clk 0:00:06.1]} 46... Ra4 {[%clk 0:00:10.7]} 47. Rb5
{[%clk 0:00:05.9]} 47... Rxh4 {[%clk 0:00:11.3]} 48. a6 {[%clk 0:00:05.1]} 48...
Ra4 {[%clk 0:00:11.8]} 49. Rb6 {[%clk 0:00:06]} 49... f5 {[%clk 0:00:10]} 50.
Kf2 {[%clk 0:00:05.8]} 50... Kh6 {[%clk 0:00:10.6]} 51. Kf3 {[%clk 0:00:06.7]}
51... Kg5 {[%clk 0:00:11]} 52. Ke3 {[%clk 0:00:04.8]} 52... h4 {[%clk
0:00:11.5]} 53. Kd3 {[%clk 0:00:05.7]} 53... h3 {[%clk 0:00:11.8]} 54. Kc3
{[%clk 0:00:06.6]} 54... h2 {[%clk 0:00:11.2]} 55. Rb1 {[%clk 0:00:06.7]} 55...
Rxa6 {[%clk 0:00:10.9]} 56. Rh1 {[%clk 0:00:07.6]} 56... Ra2 {[%clk 0:00:11.1]}
57. Kb3 {[%clk 0:00:08.5]} 57... Rg2 {[%clk 0:00:10.7]} 58. Kc3 {[%clk
0:00:09.4]} 58... Kg4 {[%clk 0:00:11.2]} 59. Kd3 {[%clk 0:00:10.3]} 59... Kg3
{[%clk 0:00:11.9]} 60. Ke3 {[%clk 0:00:11.2]} 60... Rg1 {[%clk 0:00:12.5]} 61.
Rxh2 {[%clk 0:00:11.6]} 61... Kxh2 {[%clk 0:00:13]} 62. Kf4 {[%clk 0:00:12.5]}
62... Rg4+ {[%clk 0:00:13.2]} 63. Ke5 {[%clk 0:00:12.6]} 63... Kg3 {[%clk
0:00:12.8]} 64. Kf6 {[%clk 0:00:12.7]} 64... Kf4 {[%clk 0:00:13.4]} 65. Kg7
{[%clk 0:00:13.6]} 65... g5 {[%clk 0:00:13.9]} 66. Kh6 {[%clk 0:00:14.5]} 66...
Rh4+ {[%clk 0:00:14.4]} 67. Kg6 {[%clk 0:00:15.4]} 67... g4 {[%clk 0:00:14.9]}
68. Kf6 {[%clk 0:00:16.3]} 0-1

[Event "*** SCC Grand Prix: Titled Tuesday Blitz"]
[Site "Chess.com"]
[Date "2020.08.11"]
[Round "1"]
[White "ThePatrick27"]
[Black "WonderChampion"]
[Result "1-0"]
[WhiteElo "2475"]
[BlackElo "1974"]
[TimeControl "180+1"]
[EndTime "10:08:32 PDT"]
[Termination "ThePatrick27 won by resignation"]

1. d4 {[%clk 0:02:57.6]} 1... d5 {[%clk 0:02:57.9]} 2. c4 {[%clk 0:02:48.7]}
2... e6 {[%clk 0:02:57.3]} 3. Nf3 {[%clk 0:02:36.4]} 3... c6 {[%clk 0:02:53.8]}
4. Nc3 {[%clk 0:02:28.7]} 4... dxc4 {[%clk 0:02:43.3]} 5. a4 {[%clk 0:02:19.6]}
5... Bb4 {[%clk 0:02:41.3]} 6. e4 {[%clk 0:02:17.6]} 6... b5 {[%clk 0:02:39.8]}
7. Be2 {[%clk 0:02:13.7]} 7... Nf6 {[%clk 0:02:37]} 8. Qc2 {[%clk 0:02:05.8]}
8... Bb7 {[%clk 0:02:31.1]} 9. O-O {[%clk 0:01:59.9]} 9... O-O {[%clk
0:02:30.4]} 10. Bg5 {[%clk 0:01:49.5]} 10... Qd7 {[%clk 0:02:22.3]} 11. e5
{[%clk 0:01:08.7]} 11... Nd5 {[%clk 0:02:16.1]} 12. Ne4 {[%clk 0:01:07.7]} 12...
Qc7 {[%clk 0:01:54.7]} 13. Bd2 {[%clk 0:00:54.5]} 13... Bxd2 {[%clk 0:01:44.2]}
14. Qxd2 {[%clk 0:00:52.2]} 14... Nd7 {[%clk 0:01:43.8]} 15. Rac1 {[%clk
0:00:19.2]} 15... a6 {[%clk 0:01:41.7]} 16. Qg5 {[%clk 0:00:18.3]} 16... h6
{[%clk 0:01:35.1]} 17. Qg3 {[%clk 0:00:18.3]} 17... f6 {[%clk 0:01:30]} 18. Bd1
{[%clk 0:00:16]} 18... fxe5 {[%clk 0:01:27.1]} 19. dxe5 {[%clk 0:00:16.9]} 19...
Nf4 {[%clk 0:01:22.9]} 20. Kh1 {[%clk 0:00:09.9]} 20... c5 {[%clk 0:01:19.1]}
21. Nd6 {[%clk 0:00:09.3]} 21... Nxe5 {[%clk 0:01:13.5]} 22. Nxb7 {[%clk
0:00:06.5]} 22... Ned3 {[%clk 0:01:08.7]} 23. Rc3 {[%clk 0:00:03.6]} 23... Qxb7
{[%clk 0:01:07.3]} 24. axb5 {[%clk 0:00:04.2]} 24... axb5 {[%clk 0:01:05.9]} 25.
b3 {[%clk 0:00:04.6]} 25... cxb3 {[%clk 0:00:57.7]} 26. Bxb3 {[%clk 0:00:05.5]}
26... c4 {[%clk 0:00:55.5]} 27. Bd1 {[%clk 0:00:05.8]} 27... Qc6 {[%clk
0:00:50.9]} 28. Nd4 {[%clk 0:00:06]} 28... Qd5 {[%clk 0:00:49.9]} 29. Ne2 {[%clk
0:00:06.6]} 29... b4 {[%clk 0:00:45.3]} 30. Rc2 {[%clk 0:00:05.9]} 30... Qf5
{[%clk 0:00:41.3]} 31. Rxc4 {[%clk 0:00:05.5]} 31... Nxe2 {[%clk 0:00:35.7]} 32.
Bxe2 {[%clk 0:00:06.4]} 32... Nxf2+ {[%clk 0:00:35.3]} 33. Kg1 {[%clk 0:00:07]}
33... Qg5 {[%clk 0:00:18.3]} 34. Qxg5 {[%clk 0:00:05.6]} 34... hxg5 {[%clk
0:00:19.2]} 35. Rxf2 {[%clk 0:00:05.9]} 35... Ra1+ {[%clk 0:00:19.5]} 36. Bf1
{[%clk 0:00:06.6]} 36... Re8 {[%clk 0:00:19.2]} 37. Re2 {[%clk 0:00:06.3]} 37...
Rea8 {[%clk 0:00:19.7]} 38. Rxb4 {[%clk 0:00:06.7]} 38... R1a3 {[%clk
0:00:18.5]} 39. Rbe4 {[%clk 0:00:06.8]} 39... R3a7 {[%clk 0:00:18.6]} 40. Rxe6
{[%clk 0:00:07.1]} 40... Rf7 {[%clk 0:00:19.5]} 41. Re8+ {[%clk 0:00:07.3]}
41... Rxe8 {[%clk 0:00:19.8]} 42. Rxe8+ {[%clk 0:00:08.2]} 42... Kh7 {[%clk
0:00:20.7]} 43. Bd3+ {[%clk 0:00:08.8]} 43... g6 {[%clk 0:00:20.6]} 44. Re3
{[%clk 0:00:09.5]} 44... Kg7 {[%clk 0:00:21.5]} 45. h3 {[%clk 0:00:09.1]} 45...
Rd7 {[%clk 0:00:21.3]} 46. Rf3 {[%clk 0:00:09.4]} 46... Ra7 {[%clk 0:00:21.9]}
47. Kh2 {[%clk 0:00:09.8]} 47... Ra1 {[%clk 0:00:22.4]} 48. Rg3 {[%clk
0:00:09.9]} 48... Ra7 {[%clk 0:00:23.2]} 49. Be2 {[%clk 0:00:10.3]} 49... Kh6
{[%clk 0:00:24]} 50. Bg4 {[%clk 0:00:10.9]} 50... Re7 {[%clk 0:00:24]} 51. Rf3
{[%clk 0:00:11.5]} 51... Re5 {[%clk 0:00:24.9]} 52. Rf6 {[%clk 0:00:11.7]} 52...
Kg7 {[%clk 0:00:25.4]} 53. Re6 {[%clk 0:00:12.3]} 53... Rd5 {[%clk 0:00:24.8]}
54. Kg3 {[%clk 0:00:12.8]} 54... Rd2 {[%clk 0:00:25]} 55. Bf3 {[%clk 0:00:13.4]}
55... Rd3 {[%clk 0:00:25.5]} 56. Kf2 {[%clk 0:00:12.2]} 56... Rd4 {[%clk
0:00:26.4]} 57. Ke3 {[%clk 0:00:11.9]} 57... Rd8 {[%clk 0:00:26.7]} 58. Be4
{[%clk 0:00:12.2]} 58... Rf8 {[%clk 0:00:25.1]} 59. Rxg6+ {[%clk 0:00:12.4]}
59... Kh8 {[%clk 0:00:26]} 60. Rxg5 {[%clk 0:00:13.1]} 60... Re8 {[%clk
0:00:25.4]} 61. Kf4 {[%clk 0:00:12.9]} 61... Rf8+ {[%clk 0:00:24.5]} 62. Bf5
{[%clk 0:00:13.1]} 62... Re8 {[%clk 0:00:22.7]} 63. Rh5+ {[%clk 0:00:13.5]}
63... Kg8 {[%clk 0:00:21.1]} 64. Kg5 {[%clk 0:00:14]} 64... Re2 {[%clk
0:00:18.2]} 65. g4 {[%clk 0:00:14.4]} 65... Re3 {[%clk 0:00:16.2]} 66. h4 {[%clk
0:00:14.7]} 66... Rg3 {[%clk 0:00:16.2]} 67. Rh6 {[%clk 0:00:14.9]} 67... Re3
{[%clk 0:00:17.1]} 68. h5 {[%clk 0:00:15.1]} 68... Re7 {[%clk 0:00:16.6]} 69.
Re6 {[%clk 0:00:15.2]} 69... Rg7+ {[%clk 0:00:16.6]} 70. Bg6 {[%clk 0:00:15.5]}
1-0

[Event "*** SCC Grand Prix: Titled Tuesday Blitz"]
[Site "Chess.com"]
[Date "2020.08.11"]
[Round "1"]
[White "Ati1517"]
[Black "Dedic8"]
[Result "1/2-1/2"]
[WhiteElo "2418"]
[BlackElo "2828"]
[TimeControl "180+1"]
[EndTime "10:08:37 PDT"]
[Termination "Game drawn by repetition"]

1. d4 {[%clk 0:02:58.7]} 1... Nf6 {[%clk 0:03:00.1]} 2. c4 {[%clk 0:02:56.3]}
2... g6 {[%clk 0:03:00.5]} 3. Nc3 {[%clk 0:02:54.2]} 3... d5 {[%clk 0:03:00.6]}
4. cxd5 {[%clk 0:02:53.3]} 4... Nxd5 {[%clk 0:03:01.5]} 5. e4 {[%clk 0:02:54]}
5... Nxc3 {[%clk 0:03:01.8]} 6. bxc3 {[%clk 0:02:54.9]} 6... Bg7 {[%clk
0:03:02.7]} 7. Bb5+ {[%clk 0:02:54.7]} 7... c6 {[%clk 0:02:58]} 8. Ba4 {[%clk
0:02:53.1]} 8... O-O {[%clk 0:02:58]} 9. Nf3 {[%clk 0:02:50.6]} 9... Qa5 {[%clk
0:02:34.5]} 10. Bd2 {[%clk 0:02:47]} 10... Bg4 {[%clk 0:02:28.9]} 11. O-O {[%clk
0:02:23.9]} 11... c5 {[%clk 0:02:23.7]} 12. Rb1 {[%clk 0:02:07.5]} 12... Bxf3
{[%clk 0:02:00.2]} 13. gxf3 {[%clk 0:02:04.3]} 13... Qc7 {[%clk 0:01:48.6]} 14.
e5 {[%clk 0:02:01.1]} 14... Nc6 {[%clk 0:01:43.4]} 15. Bxc6 {[%clk 0:01:48.1]}
15... Qxc6 {[%clk 0:01:41.5]} 16. Bg5 {[%clk 0:01:45.2]} 16... cxd4 {[%clk
0:01:31.8]} 17. cxd4 {[%clk 0:01:42.5]} 17... e6 {[%clk 0:01:31.9]} 18. Re1
{[%clk 0:01:32.1]} 18... f6 {[%clk 0:01:10.9]} 19. exf6 {[%clk 0:01:15.2]} 19...
Bxf6 {[%clk 0:01:11.8]} 20. Bh6 {[%clk 0:01:13.5]} 20... Rfe8 {[%clk 0:01:03.3]}
21. Bf4 {[%clk 0:01:00.5]} 21... Rad8 {[%clk 0:00:59.4]} 22. Be5 {[%clk
0:00:59.2]} 22... Bxe5 {[%clk 0:00:58.8]} 23. Rxe5 {[%clk 0:00:57.8]} 23... b6
{[%clk 0:00:58.5]} 24. Qd3 {[%clk 0:00:56.7]} 24... Rf8 {[%clk 0:00:54.4]} 25.
Kg2 {[%clk 0:00:51.8]} 25... Rf4 {[%clk 0:00:52.7]} 26. Re4 {[%clk 0:00:49.5]}
26... Rf6 {[%clk 0:00:46.2]} 27. Rbe1 {[%clk 0:00:48.1]} 27... Rdf8 {[%clk
0:00:46.7]} 28. Qb3 {[%clk 0:00:42.6]} 28... Qd5 {[%clk 0:00:43.7]} 29. Qe3
{[%clk 0:00:31.7]} 29... Qxa2 {[%clk 0:00:38.1]} 30. Rh4 {[%clk 0:00:27]} 30...
Qd5 {[%clk 0:00:35.8]} 31. Rh3 {[%clk 0:00:26.1]} 31... b5 {[%clk 0:00:31.1]}
32. Rc1 {[%clk 0:00:25.8]} 32... Rxf3 {[%clk 0:00:15.1]} 33. Rxf3 {[%clk
0:00:19.9]} 33... Rxf3 {[%clk 0:00:15.6]} 34. Qxf3 {[%clk 0:00:19.8]} 34... Qg5+
{[%clk 0:00:16.2]} 35. Qg3 {[%clk 0:00:18]} 35... Qxc1 {[%clk 0:00:17.1]} 36.
Qb8+ {[%clk 0:00:18.1]} 36... Kg7 {[%clk 0:00:17.3]} 37. Qxb5 {[%clk 0:00:16.5]}
37... Kh6 {[%clk 0:00:14]} 38. h4 {[%clk 0:00:13.6]} 38... Qf4 {[%clk
0:00:13.7]} 39. Qc6 {[%clk 0:00:11.8]} 39... Qxd4 {[%clk 0:00:08.2]} 40. Qxe6
{[%clk 0:00:11.7]} 40... Qxh4 {[%clk 0:00:08.3]} 41. Qd7 {[%clk 0:00:10.5]}
41... Qg5+ {[%clk 0:00:08.1]} 42. Kf1 {[%clk 0:00:10]} 42... Qc1+ {[%clk
0:00:08.1]} 43. Kg2 {[%clk 0:00:09.6]} 43... Qc5 {[%clk 0:00:08.5]} 44. Qh3+
{[%clk 0:00:08.4]} 44... Qh5 {[%clk 0:00:08]} 45. Qd7 {[%clk 0:00:08.9]} 45...
a5 {[%clk 0:00:08]} 46. Qf7 {[%clk 0:00:07.5]} 46... Qg5+ {[%clk 0:00:07.9]} 47.
Kf1 {[%clk 0:00:07.2]} 47... Qf5 {[%clk 0:00:08.8]} 48. Qe7 {[%clk 0:00:04.6]}
48... Qd3+ {[%clk 0:00:07.5]} 49. Kg2 {[%clk 0:00:03.2]} 49... Qd5+ {[%clk
0:00:07]} 50. Kf1 {[%clk 0:00:03.4]} 50... a4 {[%clk 0:00:06.1]} 51. Qh4+ {[%clk
0:00:02.9]} 51... Kg7 {[%clk 0:00:06.6]} 52. Qe7+ {[%clk 0:00:03.3]} 52... Qf7
{[%clk 0:00:06.2]} 53. Qe5+ {[%clk 0:00:02.8]} 53... Qf6 {[%clk 0:00:06.6]} 54.
Qc7+ {[%clk 0:00:02.6]} 54... Kh6 {[%clk 0:00:06.2]} 55. Qh2+ {[%clk 0:00:02.9]}
55... Kg7 {[%clk 0:00:05.7]} 56. Qc7+ {[%clk 0:00:02.9]} 56... Kg8 {[%clk
0:00:06.3]} 57. Qc8+ {[%clk 0:00:02.5]} 57... Qf8 {[%clk 0:00:06.5]} 58. Qc4+
{[%clk 0:00:02.4]} 58... Qf7 {[%clk 0:00:05.8]} 59. Qc8+ {[%clk 0:00:02.9]}
59... Kg7 {[%clk 0:00:04.9]} 60. Qc3+ {[%clk 0:00:03.1]} 60... Qf6 {[%clk
0:00:05.3]} 61. Qc7+ {[%clk 0:00:02.8]} 1/2-1/2